bitfinex-derivatives/quotes_BTCF0:USTF0_20241125
["timestamp","ask_amount","ask_price","bid_price","bid_amount"]
[1732528786770,0.193835,98573.0,98572.0,0.06249584]
[1732528789477,0.52773422,98573.0,98572.0,0.06249584]
[1732528789974,0.193835,98573.0,98572.0,0.06249584]
[1732528792776,0.050675,98573.0,98572.0,0.06249584]
[1732528792973,0.193795,98573.0,98572.0,0.06249584]
[1732528795482,0.050675,98573.0,98572.0,0.06249584]
[1732528795778,0.193795,98573.0,98572.0,0.06249584]
[1732528796976,0.40658338,98573.0,98572.0,0.06249584]
[1732528797481,0.193795,98573.0,98572.0,0.06249584]
[1732528798786,0.40659214,98573.0,98572.0,0.06249584]
[1732528798975,0.193795,98573.0,98572.0,0.06249584]
[1732528799376,0.26347214,98573.0,98572.0,0.06249584]
[1732528799576,0.40659214,98573.0,98572.0,0.06249584]
[1732528800377,0.193795,98573.0,98572.0,0.06249584]
[1732528800696,0.05068,98563.0,98562.0,0.0001297]
[1732528800879,0.5546,98563.0,98562.0,0.0901297]
[1732528801079,0.5546,98563.0,98562.0,0.0402297]
[1732528801384,0.5868,98563.0,98562.0,0.0402297]
[1732528801585,0.5868,98563.0,98542.0,0.13]
[1732528801586,0.050683,98559.0,98542.0,0.13]
[1732528801777,0.5868,98563.0,98542.0,0.13]
[1732528801778,0.05069,98545.0,98542.0,0.13]
[1732528801979,0.14312,98544.0,98542.0,0.13]
[1732528802177,0.14312,98544.0,98543.0,0.00012969]
[1732528802472,0.14312,98544.0,98543.0,0.13012969]
[1732528803281,0.14312,98544.0,98543.0,0.18082069]
[1732528803472,0.32508271,98544.0,98543.0,0.13012969]
[1732528803671,0.37577271,98544.0,98543.0,0.13012969]
[1732528804183,0.19381,98544.0,98543.0,0.13012969]
[1732528808883,0.05069,98544.0,98543.0,0.13012969]
[1732528809087,0.00052001,98560.0,98543.0,0.79536969]
[1732528809384,0.050684,98557.0,98556.0,0.050683]
[1732528809578,0.050679,98567.0,98564.0,0.05068]
[1732528809782,0.21210358,98574.0,98565.0,0.3608]
[1732528809983,0.050677,98571.0,98570.0,0.050676]
[1732528810380,0.050677,98571.0,98570.0,0.180676]
[1732528810983,0.050677,98571.0,98570.0,0.13]
[1732528812093,0.411477,98571.0,98570.0,0.13]
[1732528812487,0.554597,98571.0,98570.0,0.13]
[1732528812691,0.050677,98571.0,98570.0,0.13]
[1732528813279,0.050677,98571.0,98570.0,0.180677]
[1732528814095,0.050677,98571.0,98570.0,0.13]
[1732528814994,0.411477,98571.0,98570.0,0.13]
[1732528815386,0.050677,98571.0,98570.0,0.13]
[1732528816283,0.050677,98571.0,98570.0,0.180677]
[1732528824287,0.26280967,98571.0,98570.0,0.180677]
[1732528824486,0.050677,98571.0,98570.0,0.180677]
[1732528824997,0.050677,98571.0,98570.0,0.13]
[1732528825492,0.0999803,98571.0,98570.0,0.13]
[1732528826194,0.11020271,98571.0,98570.0,0.13]
[1732528827196,0.38378437,98571.0,98570.0,0.13]
[1732528827497,0.11020271,98571.0,98570.0,0.13]
[1732528827994,0.11023389,98571.0,98570.0,0.13]
[1732528828294,0.0999803,98571.0,98570.0,0.13]
[1732528828493,0.11011951,98571.0,98570.0,0.13]
[1732528829191,0.0999803,98571.0,98570.0,0.13]
[1732528831502,0.050677,98571.0,98570.0,0.13]
[1732528832289,0.37554581,98571.0,98570.0,0.13]
[1732528832488,0.193677,98571.0,98570.0,0.13]
[1732528833187,0.050677,98571.0,98570.0,0.13]
[1732528833393,0.193677,98571.0,98570.0,0.13]
[1732528835004,0.23680358,98571.0,98570.0,0.13]
[1732528835401,0.44895491,98571.0,98570.0,0.13]
[1732528835590,0.23680358,98571.0,98570.0,0.13]
[1732528837698,0.54032471,98571.0,98570.0,0.13]
[1732528838800,0.23680358,98571.0,98570.0,0.13]
[1732528839301,0.193677,98571.0,98570.0,0.13]
[1732528839496,0.44690999,98571.0,98570.0,0.13]
[1732528839689,0.143,98571.0,98570.0,0.13]
[1732528839898,0.050675,98574.0,98570.0,0.1615]
[1732528840094,0.27352382,98571.0,98570.0,0.1615]
[1732528840295,0.27352382,98572.0,98570.0,0.1615]
[1732528840599,0.27352382,98573.0,98570.0,0.1615]
[1732528840807,0.050676,98572.0,98570.0,0.1615]
[1732528841005,0.32419982,98572.0,98570.0,0.1615]
[1732528841297,0.12408523,98636.0,98570.0,0.1615]
[1732528841298,0.27357796,98573.0,98570.0,0.1615]
[1732528841496,0.27357796,98573.0,98571.0,0.050676]
[1732528841697,0.27357796,98574.0,98573.0,0.050675]
[1732528841898,0.27357796,98574.0,98573.0,0.200675]
[1732528842293,0.09256955,98577.0,98574.0,0.050674]
[1732528842595,0.36614751,98577.0,98574.0,0.180674]
[1732528842897,0.09256955,98577.0,98574.0,0.180674]
[1732528843102,0.050674,98576.0,98574.0,0.180674]
[1732528843301,0.27360561,98575.0,98574.0,0.180674]
[1732528843500,0.050674,98576.0,98574.0,0.180674]
[1732528844294,0.050674,98576.0,98574.0,0.13]
[1732528844493,0.32425767,98576.0,98574.0,0.13]
[1732528844796,0.27358367,98575.0,98574.0,0.13]
[1732528845004,0.050674,98576.0,98574.0,0.13]
[1732528845395,0.21276391,98575.0,98574.0,0.13]
[1732528845902,0.26343791,98576.0,98574.0,0.180674]
[1732528846502,0.050674,98576.0,98574.0,0.180674]
[1732528847502,0.21276391,98575.0,98574.0,0.180674]
[1732528847697,0.26343791,98576.0,98574.0,0.180674]
[1732528847906,0.21276391,98575.0,98574.0,0.180674]
[1732528848208,0.050674,98576.0,98574.0,0.180674]
[1732528849610,0.0428874,98581.0,98580.0,0.050672]
[1732528849909,0.0492984,98581.0,98580.0,0.190672]
[1732528850099,0.050667,98590.0,98580.0,0.190672]
[1732528850100,0.21273102,98585.0,98583.0,0.05067]
[1732528850301,0.27207709,98584.0,98583.0,0.18067]
[1732528850500,0.05934607,98584.0,98583.0,0.18067]
[1732528850914,0.04929774,98584.0,98583.0,0.18067]
[1732528851100,0.050667,98588.0,98587.0,0.050668]
[1732528851305,0.09995964,98588.0,98587.0,0.180668]
[1732528852100,0.10999719,98588.0,98587.0,0.180668]
[1732528852410,0.11004083,98588.0,98587.0,0.180668]
[1732528853404,0.33395237,98588.0,98587.0,0.180668]
[1732528853600,0.11004083,98588.0,98587.0,0.180668]
[1732528853805,0.11004083,98588.0,98587.0,0.541468]
[1732528854198,0.09995964,98588.0,98587.0,0.541468]
[1732528854403,0.04929264,98588.0,98587.0,0.541468]
[1732528854601,0.05069,98592.0,98591.0,0.050666]
[1732528854805,0.05069,98592.0,98591.0,0.18079239]
[1732528855110,0.05069,98592.0,98591.0,0.54159239]
[1732528855313,0.05069,98601.0,98600.0,0.050661]
[1732528855508,0.101351,98601.0,98600.0,0.561461]
[1732528856196,0.050661,98601.0,98600.0,0.561461]
[1732528856396,0.06069745,98601.0,98600.0,0.561461]
[1732528856808,0.050661,98601.0,98600.0,0.561461]
[1732528857298,0.06076639,98601.0,98600.0,0.561461]
[1732528857506,0.06076639,98601.0,98600.0,0.200661]
[1732528858502,0.01010539,98601.0,98600.0,0.200661]
[1732528858899,0.01010539,98604.0,98600.0,0.182]
[1732528859118,0.01008244,98603.0,98602.0,0.05066]
[1732528859299,0.21196335,98603.0,98602.0,0.18066]
[1732528859498,0.01008244,98603.0,98602.0,0.18066]
[1732528859699,0.050659,98605.0,98602.0,0.13]
[1732528860006,0.050659,98605.0,98604.0,0.050659]
[1732528860207,0.06081642,98605.0,98604.0,0.200659]
[1732528861407,0.06081642,98605.0,98604.0,0.15]
[1732528862307,0.24246674,98605.0,98604.0,0.15]
[1732528862513,0.23230932,98605.0,98604.0,0.15]
[1732528862719,0.23230932,98605.0,98604.0,0.200659]
[1732528863512,0.050659,98605.0,98604.0,0.200659]
[1732528864306,0.23230932,98605.0,98604.0,0.200659]
[1732528864704,0.00013145,98606.0,98605.0,0.050659]
[1732528864907,0.00013145,98606.0,98605.0,0.180659]
[1732528865107,0.18176531,98606.0,98605.0,0.180659]
[1732528865307,0.00013145,98606.0,98605.0,0.180659]
[1732528867511,0.05078945,98606.0,98605.0,0.13]
[1732528868228,0.05078945,98606.0,98605.0,0.180659]
[1732528869716,0.10007432,98606.0,98605.0,0.180659]
[1732528870720,0.05078945,98606.0,98605.0,0.180659]
[1732528871215,0.00013145,98606.0,98605.0,0.180659]
[1732528875419,0.04941281,98606.0,98605.0,0.180659]
[1732528876422,0.29214516,98606.0,98605.0,0.180659]
[1732528877409,0.05948977,98606.0,98605.0,0.180659]
[1732528878722,0.05949016,98606.0,98605.0,0.180659]
[1732528879110,0.25277265,98606.0,98605.0,0.180659]
[1732528879315,0.05949016,98606.0,98605.0,0.180659]
[1732528879614,0.0494132,98606.0,98605.0,0.180659]
[1732528883525,0.05948305,98606.0,98605.0,0.14897335]
[1732528884733,0.04941373,98606.0,98605.0,0.14897335]
[1732528885126,0.04941356,98606.0,98605.0,0.14897335]
[1732528885927,0.04941356,98606.0,98605.0,0.09831435]
[1732528885928,0.10007156,98606.0,98605.0,0.09831435]
[1732528886230,0.10007156,98606.0,98600.0,0.00096]
[1732528886231,0.050661,98601.0,98600.0,0.00096]
[1732528886421,0.09994311,98601.0,98600.0,0.09]
[1732528887421,0.14254332,98601.0,98600.0,0.09]
[1732528887826,0.09994311,98601.0,98600.0,0.09]
[1732528888027,0.09994311,98601.0,98600.0,0.4508]
[1732528888223,0.04928211,98601.0,98600.0,0.501461]
[1732528888423,0.04928409,98601.0,98600.0,0.501461]
[1732528889019,0.04928409,98601.0,98600.0,0.4508]
[1732528889322,0.04928365,98604.0,98600.0,0.4508]
[1732528889520,0.09994365,98603.0,98602.0,0.05066]
[1732528889734,0.09994365,98603.0,98602.0,0.19066]
[1732528889936,0.09994365,98603.0,98602.0,0.14]
[1732528891524,0.26303238,98603.0,98602.0,0.14]
[1732528891729,0.45507603,98603.0,98602.0,0.14]
[1732528892728,0.24270365,98603.0,98602.0,0.14]
[1732528892934,0.60350365,98603.0,98602.0,0.14]
[1732528893329,0.8158861,98603.0,98602.0,0.14]
[1732528893524,1.20774365,98603.0,98602.0,0.05990857]
[1732528894534,1.20774365,98603.0,98602.0,0.05418743]
[1732528894729,1.15846,98603.0,98602.0,0.05418743]
[1732528895739,1.20776013,98603.0,98602.0,0.02557484]
[1732528895935,0.050665,98592.0,98591.0,0.00012639]
[1732528896128,0.60352513,98592.0,98591.0,0.01012639]
[1732528896326,0.90780513,98592.0,98591.0,0.01012639]
[1732528896527,1.15005261,98592.0,98591.0,0.01012639]
[1732528897034,0.90780513,98592.0,98591.0,0.01012639]
[1732528898225,0.90780681,98592.0,98591.0,0.01012639]
[1732528898431,1.24078273,98592.0,98591.0,0.01012639]
[1732528898639,0.90780681,98592.0,98591.0,0.01012639]
[1732528900431,1.24040857,98592.0,98591.0,0.01012639]
[1732528900631,0.88686676,98592.0,98591.0,0.01012639]
[1732528901039,0.554265,98592.0,98591.0,0.01012639]
[1732528901239,0.79617302,98592.0,98591.0,0.01012639]
[1732528901536,0.79617302,98592.0,98591.0,0.01143127]
[1732528901752,0.84547012,98592.0,98591.0,0.01143127]
[1732528902463,0.6035621,98592.0,98591.0,0.01143127]
[1732528902854,0.6035621,98592.0,98591.0,0.01151902]
[1732528903554,0.6035621,98592.0,98591.0,0.01151902]
[1732528904047,0.73288798,98592.0,98591.0,0.01151902]
[1732528904431,0.29117247,98592.0,98591.0,0.01151902]
[1732528904742,0.04929156,98595.0,98593.0,0.050665]
[1732528905050,0.050664,98595.0,98594.0,0.0329]
[1732528905339,0.09995495,98595.0,98594.0,0.1729]
[1732528905737,0.23204978,98595.0,98594.0,0.17429263]
[1732528905937,0.28134073,98595.0,98594.0,0.17429263]
[1732528906242,0.46075495,98595.0,98594.0,0.17429263]
[1732528906745,0.46075495,98595.0,98594.0,0.18429263]
[1732528908747,0.64216582,98595.0,98594.0,0.18429263]
[1732528909346,0.46075495,98595.0,98594.0,0.18429263]
[1732528910246,0.46075495,98595.0,98594.0,0.17429263]
[1732528910447,0.64218994,98595.0,98594.0,0.17429263]
[1732528910747,0.46075495,98595.0,98594.0,0.17429263]
[1732528910948,0.64218994,98595.0,98594.0,0.17429263]
[1732528911145,0.46075889,98595.0,98594.0,0.17429263]
[1732528912835,0.67237563,98595.0,98594.0,0.17429263]
[1732528913146,0.46075889,98595.0,98594.0,0.17429263]
[1732528914546,0.70281067,98595.0,98594.0,0.17429263]
[1732528914747,0.46075889,98595.0,98594.0,0.17429263]
[1732528918752,0.41009489,98595.0,98594.0,0.07476706]
[1732528919051,0.04929489,98595.0,98594.0,0.48623106]
[1732528919252,0.35213859,98598.0,98594.0,0.43556706]
[1732528919442,0.0492911,98597.0,98596.0,0.050663]
[1732528919642,0.0999541,98597.0,98596.0,0.14]
[1732528919852,0.11006274,98597.0,98596.0,0.14]
[1732528920055,0.41291023,98597.0,98596.0,0.10831057]
[1732528920244,0.0999541,98597.0,98596.0,0.10831057]
[1732528920446,0.35354063,98597.0,98596.0,0.10831057]
[1732528920765,0.31196862,98597.0,98596.0,0.05126409]
[1732528920945,0.0999541,98597.0,98596.0,0.05126409]
[1732528921951,0.0492911,98597.0,98596.0,0.10192709]
[1732528922149,0.0492911,98597.0,98596.0,0.05126409]
[1732528922353,0.21201452,98599.0,98598.0,0.050662]
[1732528922553,0.21201452,98600.0,98598.0,0.14]
[1732528922749,0.21201452,98600.0,98599.0,0.050662]
[1732528922951,0.26267452,98603.0,98602.0,0.05066]
[1732528923157,0.09994729,98603.0,98602.0,0.20066]
[1732528925850,0.09994729,98603.0,98602.0,0.15]
[1732528926651,0.05066,98603.0,98602.0,0.15]
[1732528927545,0.08276,98603.0,98602.0,0.15]
[1732528927749,0.35535009,98603.0,98602.0,0.15]
[1732528927953,0.08276,98603.0,98602.0,0.15]
[1732528928751,0.13205097,98603.0,98602.0,0.15]
[1732528930155,0.09995097,98603.0,98602.0,0.15]
[1732528930757,0.05066,98603.0,98602.0,0.15]
[1732528932362,0.06336912,98603.0,98602.0,0.15]
[1732528932954,0.36615913,98603.0,98602.0,0.15]
[1732528933163,0.06336912,98603.0,98602.0,0.15]
[1732528934957,0.36626804,98603.0,98602.0,0.15]
[1732528935961,0.11266008,98603.0,98602.0,0.15]
[1732528936759,0.32468488,98603.0,98602.0,0.15]
[1732528937164,0.11266008,98603.0,98602.0,0.15]
[1732528939465,0.32470855,98603.0,98602.0,0.15]
[1732528939868,0.11266008,98603.0,98602.0,0.15]
[1732528940671,0.25534008,98603.0,98602.0,0.15]
[1732528941060,0.41827578,98603.0,98602.0,0.15]
[1732528941367,0.25534008,98603.0,98602.0,0.15]
[1732528941774,0.20468008,98603.0,98602.0,0.15]
[1732528942064,0.21480165,98603.0,98602.0,0.15]
[1732528945274,0.21480165,98603.0,98602.0,0.11830863]
[1732528946269,0.21480165,98603.0,98602.0,0.06126416]
[1732528949969,0.20468008,98603.0,98602.0,0.06126416]
[1732528950676,0.44723787,98603.0,98602.0,0.06126416]
[1732528950863,0.20468008,98603.0,98602.0,0.06126416]
[1732528951272,0.50892008,98603.0,98602.0,0.02594722]
[1732528951571,0.50892008,98603.0,98602.0,0.03]
[1732528951967,0.050665,98592.0,98577.0,0.3608]
[1732528952162,0.60327596,98592.0,98591.0,0.01012639]
[1732528952367,0.61598508,98592.0,98591.0,0.01012639]
[1732528952566,0.88879755,98592.0,98591.0,0.01012639]
[1732528952969,0.61598508,98592.0,98591.0,0.01012639]
[1732528956979,0.61598508,98592.0,98571.0,0.44562811]
[1732528956980,0.050674,98576.0,98571.0,0.44562811]
[1732528957175,0.62602742,98592.0,98571.0,0.44562811]
[1732528957176,0.24202838,98573.0,98571.0,0.57562811]
[1732528957370,0.03223775,98572.0,98571.0,0.54393051]
[1732528957770,0.08152871,98572.0,98571.0,0.54393051]
[1732528957974,0.21370714,98572.0,98571.0,0.54401887]
[1732528958170,0.08152871,98572.0,98571.0,0.54401887]
[1732528958375,0.07204242,98572.0,98571.0,0.54401887]
[1732528958572,0.07204242,98572.0,98571.0,0.84837887]
[1732528958775,0.15120631,98572.0,98571.0,1.19905487]
[1732528958973,0.18146939,98583.0,98571.0,1.14837887]
[1732528959173,0.05067,98583.0,98582.0,0.3608]
[1732528959470,0.09996646,98583.0,98582.0,0.4908]
[1732528959676,0.09996646,98583.0,98582.0,0.5239]
[1732528959677,0.10943989,98583.0,98582.0,0.5239]
[1732528959980,0.10944043,98583.0,98582.0,0.5239]
[1732528960176,0.10943739,98583.0,98582.0,0.5239]
[1732528960375,0.12533498,98583.0,98582.0,0.50108054]
[1732528960582,0.12533498,98583.0,98582.0,0.53158054]
[1732528961381,0.30682876,98583.0,98582.0,0.53158054]
[1732528962383,0.12533498,98583.0,98582.0,0.53158054]
[1732528963788,0.12533498,98583.0,98582.0,0.57329862]
[1732528963986,0.12533498,98583.0,98582.0,0.53158054]
[1732528964478,0.12533498,98583.0,98582.0,0.1631]
[1732528964790,0.12533498,98583.0,98582.0,0.13]
[1732528965681,0.12533498,98583.0,98582.0,0.10717824]
[1732528966789,0.12597091,98583.0,98582.0,0.10717824]
[1732528967485,0.12597091,98583.0,98582.0,0.07548112]
[1732528968385,0.1099663,98583.0,98582.0,0.07548112]
[1732528968587,0.1099663,98583.0,98582.0,0.0290963]
[1732528968588,0.15314079,98583.0,98582.0,0.0290963]
[1732528968792,0.45746079,98583.0,98582.0,0.03]
[1732528968990,0.050676,98572.0,98571.0,8.836e-05]
[1732528969185,0.6133323,98572.0,98571.0,0.02008836]
[1732528970494,0.61304831,98572.0,98571.0,0.02008836]
[1732528970993,0.62305272,98572.0,98571.0,0.02008836]
[1732528971692,0.66634561,98572.0,98571.0,0.02008836]
[1732528974688,0.66635397,98572.0,98571.0,0.02008836]
[1732528975482,0.68232151,98572.0,98571.0,0.02008836]
[1732528975697,0.050683,98559.0,98554.0,0.050685]
[1732528975890,0.0863822,98558.0,98554.0,0.190685]
[1732528976091,0.0356992,98557.0,98554.0,0.190685]
[1732528976287,0.0356992,98556.0,98554.0,0.190685]
[1732528976492,0.02598031,98555.0,98554.0,0.190685]
[1732528976695,0.0863832,98555.0,98554.0,0.14]
[1732528976893,0.0863832,98555.0,98554.0,0.14012212]
[1732528978388,0.0863832,98555.0,98554.0,0.10841893]
[1732528978696,0.07041566,98555.0,98554.0,0.10841893]
[1732528980097,0.06040289,98555.0,98554.0,0.10841893]
[1732528980494,0.050684,98555.0,98554.0,0.10841893]
[1732528981001,0.09999301,98555.0,98554.0,0.10841893]
[1732528981699,0.09999301,98555.0,98554.0,0.46921893]
[1732528982302,0.09999301,98555.0,98554.0,0.51990393]
[1732528983000,0.09999266,98555.0,98554.0,0.46921893]
[1732528983588,0.10941132,98555.0,98554.0,0.46921893]
[1732528983788,0.10941132,98555.0,98554.0,0.10841893]
[1732528984297,0.11940696,98555.0,98554.0,0.10841893]
[1732528985090,0.12885675,98555.0,98554.0,0.10841893]
[1732528985397,0.10944245,98555.0,98554.0,0.10841893]
[1732528986804,0.09999266,98555.0,98554.0,0.10841893]
[1732528987700,0.0999929,98555.0,98554.0,0.10841893]
[1732528989907,0.10953792,98555.0,98554.0,0.46921893]
[1732528990591,0.0999929,98555.0,98554.0,0.46921893]
[1732528991395,0.29212049,98555.0,98554.0,0.10841893]
[1732528991705,0.10942483,98555.0,98554.0,0.07671355]
[1732528992595,0.32256254,98555.0,98554.0,0.07671355]
[1732528992791,0.0999929,98555.0,98554.0,0.07671355]
[1732528992994,0.32265551,98555.0,98554.0,0.07671355]
[1732528993208,0.0999929,98555.0,98554.0,0.07671355]
[1732528996402,0.0999929,98555.0,98554.0,0.01964351]
[1732528997207,0.26237662,98555.0,98554.0,0.01964351]
[1732528997404,0.0999929,98555.0,98554.0,0.01964351]
[1732529000306,0.11005599,98555.0,98554.0,0.01964351]
[1732529001405,0.25249599,98555.0,98554.0,0.01964351]
[1732529001705,0.26212997,98555.0,98554.0,0.01964351]
[1732529001908,0.30431068,98555.0,98554.0,0.13]
[1732529002724,0.2946767,98555.0,98554.0,0.13]
[1732529003013,0.30415216,98555.0,98554.0,0.13012783]
[1732529003414,0.30415216,98555.0,98554.0,0.05000101]
[1732529003710,0.2946767,98555.0,98554.0,0.05000101]
[1732529004006,0.57859963,98555.0,98554.0,0.05000101]
[1732529004214,0.28461361,98555.0,98554.0,0.05000101]
[1732529005206,0.53826515,98555.0,98554.0,0.05000101]
[1732529005401,0.28461361,98555.0,98554.0,0.05000101]
[1732529006508,0.28461361,98555.0,98554.0,0.00191905]
[1732529007013,0.5382498,98555.0,98554.0,0.00191905]
[1732529007214,0.28461818,98555.0,98554.0,0.00191905]
[1732529008218,0.58756327,98555.0,98554.0,0.00191905]
[1732529008515,0.28461818,98555.0,98554.0,0.00191905]
[1732529009411,0.23530471,98555.0,98554.0,0.00191905]
[1732529009609,0.28461954,98555.0,98554.0,0.00191905]
[1732529010718,0.56806635,98555.0,98554.0,0.00191905]
[1732529010914,0.28461954,98555.0,98554.0,0.00191905]
[1732529011813,0.28462138,98555.0,98554.0,0.00191905]
[1732529012316,0.050689,98546.0,98545.0,0.04302931]
[1732529012511,0.11025894,98546.0,98545.0,0.14]
[1732529013020,0.11971093,98546.0,98545.0,0.10829197]
[1732529013218,0.10945766,98546.0,98545.0,0.10829197]
[1732529013416,0.06014099,98546.0,98545.0,0.10841807]
[1732529013713,0.10945807,98546.0,98545.0,0.10841807]
[1732529013920,0.10000608,98546.0,98545.0,0.10841807]
[1732529014717,0.26244615,98546.0,98545.0,0.10841807]
[1732529014913,0.31176323,98546.0,98545.0,0.10841807]
[1732529015113,0.10000608,98546.0,98545.0,0.10841807]
[1732529017915,0.35318899,98546.0,98545.0,0.10841807]
[1732529018223,0.40250607,98546.0,98545.0,0.10841807]
[1732529018413,0.10000608,98546.0,98545.0,0.10841807]
[1732529020906,0.10945248,98546.0,98545.0,0.10841807]
[1732529021109,0.10000608,98546.0,98545.0,0.10841807]
[1732529021305,0.37224976,98546.0,98545.0,0.10841807]
[1732529021507,0.10945247,98546.0,98545.0,0.10841807]
[1732529022907,0.10945247,98546.0,98545.0,0.07670979]
[1732529023815,0.25184299,98546.0,98545.0,0.07670979]
[1732529024619,0.55434298,98546.0,98545.0,0.07670979]
[1732529024809,0.54486607,98546.0,98545.0,0.01963344]
[1732529025010,0.050692,98541.0,98540.0,0.02310561]
[1732529025213,0.050692,98541.0,98532.0,0.3608]
[1732529025214,0.050696,98533.0,98532.0,0.3608]
[1732529025412,0.11037451,98533.0,98532.0,0.55251075]
[1732529025812,0.13698456,98533.0,98532.0,0.52967945]
[1732529026010,0.13698456,98533.0,98532.0,0.52976066]
[1732529026911,0.12060914,98533.0,98532.0,0.52976066]
[1732529027316,0.11024771,98533.0,98532.0,0.52976066]
[1732529030018,0.12025087,98533.0,98532.0,0.52976066]
[1732529031023,0.08682775,98533.0,98532.0,0.52976066]
[1732529031322,0.12614469,98533.0,98532.0,0.52976066]
[1732529031523,0.12614507,98533.0,98532.0,0.52976066]
[1732529031719,0.12614507,98533.0,98532.0,0.19179196]
[1732529031921,0.11025111,98533.0,98532.0,0.19179196]
[1732529032522,0.20183141,98533.0,98532.0,0.63863196]
[1732529032727,0.06956625,98533.0,98532.0,0.63863196]
[1732529032914,0.08566326,98533.0,98532.0,0.63863196]
[1732529033225,0.18763922,98533.0,98532.0,0.63863196]
[1732529033613,0.03635076,98533.0,98532.0,0.63863196]
[1732529034024,0.08566327,98533.0,98532.0,0.63863196]
[1732529034218,0.03635076,98533.0,98532.0,0.63863196]
[1732529036126,0.03655038,98533.0,98532.0,0.63863196]
[1732529038322,0.18782623,98533.0,98532.0,0.63863196]
[1732529038624,0.03655038,98533.0,98532.0,0.63863196]
[1732529038817,0.18782623,98533.0,98532.0,0.63863196]
[1732529039019,0.03655038,98533.0,98532.0,0.63863196]
[1732529039215,0.18158564,98548.0,98535.0,0.050695]
[1732529039517,0.01677877,98553.0,98552.0,0.050686]
[1732529039818,0.04930363,98556.0,98552.0,0.58664]
[1732529040024,0.05069,98560.0,98559.0,0.050682]
[1732529040025,0.06746877,98560.0,98559.0,0.050682]
[1732529040222,0.09999249,98560.0,98559.0,0.200682]
[1732529040417,0.23227564,98560.0,98559.0,0.200682]
[1732529040627,0.28157813,98560.0,98559.0,0.200682]
[1732529041117,0.09999249,98560.0,98559.0,0.200682]
[1732529041431,0.09999249,98560.0,98559.0,0.1778588]
[1732529041721,0.26214484,98560.0,98559.0,0.1778588]
[1732529042022,0.09999249,98560.0,98559.0,0.1778588]
[1732529043218,0.09999249,98560.0,98559.0,0.22045601]
[1732529043424,0.11692887,98560.0,98559.0,0.22045601]
[1732529043822,0.11692887,98560.0,98559.0,0.52485601]
[1732529044021,0.09999257,98560.0,98559.0,0.88565601]
[1732529045119,0.09999257,98560.0,98559.0,1.02789601]
[1732529045629,0.18104569,98567.0,98565.0,0.050679]
[1732529045630,0.05069,98566.0,98565.0,0.050679]
[1732529045828,0.0999841,98566.0,98565.0,0.561479]
[1732529046125,0.09998447,98566.0,98565.0,0.865839]
[1732529047224,0.06795934,98575.0,98574.0,0.050675]
[1732529047422,0.11725459,98575.0,98574.0,0.673715]
[1732529048129,0.05069,98575.0,98574.0,0.673715]
[1732529048523,0.101364,98575.0,98574.0,0.673715]
[1732529048716,0.05069,98575.0,98574.0,0.673715]
[1732529049525,0.050673,98578.0,98574.0,0.673715]
[1732529049526,0.05069,98577.0,98576.0,0.050674]
[1732529049718,0.05069,98577.0,98576.0,0.14]
[1732529050523,0.05069,98577.0,98576.0,0.190674]
[1732529050726,0.101361,98582.0,98581.0,0.050671]
[1732529050923,0.101361,98582.0,98581.0,0.190671]
[1732529051325,0.11189896,98582.0,98581.0,0.190671]
[1732529051528,0.06122796,98582.0,98581.0,0.49511772]
[1732529052127,0.15154962,98582.0,98581.0,0.49511772]
[1732529052331,0.07077584,98582.0,98581.0,0.49511772]
[1732529052834,0.16111356,98582.0,98581.0,0.53694316]
[1732529053131,0.06122796,98582.0,98581.0,0.53694316]
[1732529054230,0.01053796,98582.0,98581.0,0.53694316]
[1732529054538,0.082462,98598.0,98581.0,0.53694316]
[1732529054539,0.0318,98598.0,98581.0,0.78627216]
[1732529054829,0.0318,98598.0,98597.0,0.411463]
[1732529055028,0.0318,98598.0,98597.0,0.683663]
[1732529055228,0.0318,98598.0,98597.0,0.987943]
[1732529056132,0.04120649,98598.0,98597.0,0.987943]
[1732529056830,0.0318,98598.0,98597.0,0.987943]
[1732529057523,0.0318,98598.0,98597.0,1.02953901]
[1732529063350,0.0318,98598.0,98597.0,0.58305901]
[1732529063544,0.0318,98598.0,98597.0,0.72521901]
[1732529063735,0.08108178,98598.0,98597.0,0.72521901]
[1732529064039,0.13177178,98598.0,98597.0,0.72521901]
[1732529066436,0.18243378,98598.0,98597.0,0.58305901]
[1732529066637,0.32416901,98598.0,98597.0,0.17159601]
[1732529066834,0.1924051,98598.0,98597.0,0.03]
[1732529067029,0.18243378,98598.0,98597.0,0.03]
[1732529068933,0.18243378,98598.0,98587.0,0.3608]
[1732529069131,0.18243378,98598.0,98587.0,0.13]
[1732529069132,0.101357,98588.0,98587.0,0.13]
[1732529069438,0.15063878,98588.0,98587.0,0.13]
[1732529070241,0.101357,98588.0,98587.0,0.13]
[1732529071230,0.25209895,98588.0,98587.0,0.13]
[1732529071844,0.101357,98588.0,98587.0,0.13]
[1732529072048,0.25209895,98588.0,98587.0,0.13]
[1732529072348,0.164057,98588.0,98587.0,0.13]
[1732529072943,0.133657,98588.0,98587.0,0.13]
[1732529073145,0.28439895,98588.0,98587.0,0.13]
[1732529074142,0.18295319,98588.0,98587.0,0.13]
[1732529077542,0.18295311,98588.0,98587.0,0.13]
[1732529079152,0.13226311,98588.0,98587.0,0.13]
[1732529080050,0.29399168,98588.0,98587.0,0.13]
[1732529080348,0.34347574,98588.0,98587.0,0.13]
[1732529081047,0.13226311,98588.0,98587.0,0.13]
[1732529081352,0.34347574,98588.0,98587.0,0.13]
[1732529081649,0.13226311,98588.0,98587.0,0.13]
[1732529082342,0.13226308,98588.0,98587.0,0.13]
[1732529082647,0.09996308,98588.0,98587.0,0.13]
[1732529084249,0.09996308,98588.0,98587.0,0.180668]
[1732529086945,0.2015611,98588.0,98587.0,0.180668]
[1732529087256,0.050667,98588.0,98587.0,0.180668]
[1732529087846,0.09995935,98588.0,98587.0,0.180668]
[1732529090246,0.04929235,98588.0,98587.0,0.180668]
[1732529090450,0.09997983,98589.0,98588.0,0.050667]
[1732529090756,0.09997983,98589.0,98588.0,0.180667]
[1732529091152,0.09997983,98589.0,98588.0,0.541467]
[1732529091656,0.23171516,98590.0,98589.0,0.050667]
[1732529091855,0.28100493,98590.0,98589.0,0.180667]
[1732529092155,0.09997955,98590.0,98589.0,0.180667]
[1732529092350,0.23198951,98590.0,98589.0,0.180667]
[1732529092655,0.09997955,98590.0,98589.0,0.180667]